bitfinex-derivatives/quotes_ETHF0:USTF0_20241228
["timestamp","ask_amount","ask_price","bid_price","bid_amount"]
[1735414508319,1.0791,3401.5,3401.4,0.29454]
[1735414510424,3.99419111,3401.7,3401.6,0.29452]
[1735414510717,3.47249111,3401.7,3401.6,1.02243814]
[1735414512215,0.515,3401.8,3401.6,0.72791814]
[1735414512523,0.515,3401.8,3401.7,0.29451]
[1735414513413,0.8095,3401.8,3401.7,0.29451]
[1735414513620,0.515,3401.8,3401.7,0.29451]
[1735414514522,0.8095,3401.8,3401.7,0.29451]
[1735414517926,0.29451,3401.7,3401.6,4.60186374]
[1735414518629,0.29451,3401.7,3401.6,4.89638374]
[1735414519125,0.29451,3401.7,3401.6,0.29452]
[1735414521024,0.515,3401.8,3401.7,0.29451]
[1735414521225,0.8095,3401.8,3401.7,0.29451]
[1735414521624,0.515,3401.8,3401.6,4.60186374]
[1735414521829,0.29451,3401.7,3401.6,4.89637374]
[1735414523028,3.7228,3401.8,3401.7,0.29451]
[1735414523029,3.2078,3401.8,3401.7,0.29451]
[1735414523626,0.5365,3401.9,3401.8,0.2945]
[1735414524222,4.00899111,3401.9,3401.8,0.2945]
[1735414525433,4.00899111,3401.9,3401.8,1.02241814]
[1735414526332,0.5365,3401.9,3401.8,1.02241814]
[1735414528645,0.5455,3402.0,3401.8,0.72791814]
[1735414528828,3.47249111,3402.1,3402.0,0.29448]
[1735414529136,3.47249111,3402.1,3402.0,1.02239814]
[1735414529333,3.47249111,3402.1,3402.0,6.02239814]
[1735414529524,2.10879111,3402.1,3402.0,6.02239814]
[1735414530342,2.10879111,3402.1,3402.0,6.94835857]
[1735414530534,0.5355,3402.8,3402.0,12.26550423]
[1735414530732,0.5355,3402.8,3402.7,1.94829857]
[1735414534539,3.2078,3403.3,3403.2,0.29438]
[1735414535150,3.7504,3403.3,3403.2,0.29438]
[1735414535346,4.04477,3403.3,3403.2,0.29438]
[1735414535844,3.7504,3403.3,3403.2,0.29438]
[1735414536252,0.2943,3404.1,3403.8,0.29432]
[1735414536440,1.0875,3403.9,3403.6,3.2078]
[1735414537145,1.0875,3403.9,3403.8,0.29433]
[1735414537546,1.0875,3403.9,3403.8,0.29186987]
[1735414537947,1.38182,3403.9,3403.8,0.29186987]
[1735414538247,1.38182,3403.9,3403.8,0.29433]
[1735414538449,1.38182,3403.9,3403.7,0.29433]
[1735414538645,1.0875,3403.9,3403.7,0.29433]
[1735414538945,1.0875,3403.9,3403.6,3.2078]
[1735414539452,1.0875,3403.9,3403.8,0.29433]
[1735414541349,1.38182,3403.9,3403.8,0.29433]
[1735414541550,1.0875,3403.9,3403.8,0.29433]
[1735414541852,1.38182,3403.9,3403.8,0.29433]
[1735414542252,0.5449,3403.9,3403.8,0.29433]
[1735414543367,0.5449,3403.9,3403.4,3.2078]
[1735414543554,0.5449,3403.9,3403.6,0.29434]
[1735414543755,0.5458,3404.1,3403.8,0.29433]
[1735414543959,0.5458,3404.1,3404.0,1.94818857]
[1735414544658,0.5458,3404.1,3404.0,0.29431]
[1735414545357,3.2078,3404.2,3404.0,1.65387857]
[1735414545660,5.15425,3404.7,3404.6,0.29426]
[1735414546458,4.86,3404.7,3404.6,0.29426]
[1735414547154,5.15425,3404.7,3404.6,0.29426]
[1735414547460,5.15425,3404.7,3404.1,0.73576]
[1735414547461,0.29427,3404.5,3404.4,0.29427]
[1735414547660,5.59565,3404.7,3404.1,0.2943]
[1735414547863,0.29429,3404.3,3404.2,0.29429]
[1735414548361,0.29428,3404.4,3404.3,0.29428]
[1735414548861,4.86,3404.7,3404.0,3.2078]
[1735414549163,0.29428,3404.4,3404.3,0.29428]
[1735414549453,4.86,3404.7,3404.0,3.2078]
[1735414549654,4.86,3404.7,3403.7,0.73585]
[1735414549655,0.29431,3404.0,3403.9,0.29432]
[1735414549857,0.29436,3403.5,3403.3,0.29437]
[1735414550049,0.5493,3403.4,3403.3,0.29437]
[1735414550250,0.84367,3403.4,3403.3,0.29437]
[1735414550450,3.7571,3403.4,3402.7,0.73605]
[1735414550665,0.29438,3403.2,3403.1,0.29438]
[1735414551155,3.7571,3403.4,3402.9,0.2944]
[1735414551360,0.29441,3402.9,3402.8,0.29441]
[1735414552361,0.2944,3403.0,3402.8,0.29441]
[1735414552658,3.2078,3402.9,3402.1,2.39006857]
[1735414552963,3.2078,3402.9,3402.5,0.29443]
[1735414552964,0.29443,3402.6,3402.5,0.29443]
[1735414553356,0.517,3402.7,3402.0,3.2078]
[1735414553558,0.29446,3402.3,3402.1,0.29447]
[1735414553862,0.29446,3402.3,3402.2,0.29447]
[1735414554051,0.29446,3402.3,3401.8,1.65387857]
[1735414554052,0.29447,3402.2,3402.1,0.29447]
[1735414554258,0.81367,3402.2,3402.1,0.29447]
[1735414554454,0.81367,3402.2,3402.0,0.29448]
[1735414554650,0.5192,3402.2,3402.0,0.29448]
[1735414554860,0.29447,3402.1,3401.8,0.2945]
[1735414555062,0.29447,3402.1,3401.5,3.2078]
[1735414555063,0.5192,3402.2,3401.5,3.2078]
[1735414555256,0.5192,3402.2,3401.9,0.29449]
[1735414555457,0.29448,3402.0,3401.9,0.29449]
[1735414556061,0.29448,3402.1,3401.9,0.29449]
[1735414557062,3.727,3402.2,3401.4,3.2078]
[1735414557257,0.29449,3402.0,3401.8,0.2945]
[1735414557456,0.5565,3401.9,3401.8,0.2945]
[1735414557657,0.5565,3401.9,3401.4,3.2078]
[1735414557858,0.85099,3401.9,3401.7,0.29451]
[1735414558057,0.5565,3401.9,3401.4,3.2078]
[1735414558458,0.5565,3401.9,3401.7,0.2945]
[1735414559365,0.5565,3401.9,3401.5,1.65387857]
[1735414559563,0.5565,3401.9,3401.8,0.2945]
[1735414561461,0.5192,3402.2,3401.5,1.65387857]
[1735414561661,0.5582,3402.5,3402.4,0.29445]
[1735414563560,0.85264,3402.5,3402.4,0.29445]
[1735414564269,0.5582,3402.5,3402.4,0.29445]
[1735414564469,1.11497772,3402.6,3402.5,0.29444]
[1735414564760,0.29442,3402.8,3402.7,0.29442]
[1735414565364,0.83991,3402.9,3402.8,0.29441]
[1735414566165,0.29442,3402.8,3402.7,0.29442]
[1735414566366,0.29441,3402.8,3402.6,0.29443]
[1735414566565,0.29441,3402.8,3402.7,0.29442]
[1735414567163,3.2078,3403.1,3402.2,3.53904857]
[1735414567466,3.50219,3403.1,3403.0,0.2944]
[1735414567667,0.2944,3403.0,3402.9,0.2944]
[1735414568161,0.8145,3403.0,3402.9,0.2944]
[1735414568363,0.5201,3403.0,3402.4,3.94392]
[1735414568659,0.29441,3402.9,3402.8,0.29441]
[1735414569560,0.80481,3402.9,3402.8,0.29441]
[1735414569969,0.5104,3402.9,3402.8,0.29441]
[1735414570264,0.5104,3402.9,3402.4,3.2078]
[1735414570467,3.2078,3402.5,3402.0,3.2078]
[1735414570662,0.29446,3402.3,3402.2,0.29446]
[1735414571164,0.82256,3402.3,3402.2,0.29446]
[1735414572168,0.5281,3402.3,3402.2,0.29446]
[1735414572759,4.86167857,3403.1,3402.0,3.2078]
[1735414572967,1.0585,3402.9,3402.8,0.29441]
[1735414573766,1.0585,3402.9,3402.1,3.2078]
[1735414573968,0.29443,3402.6,3402.5,0.29443]
[1735414574662,1.0585,3402.9,3402.1,3.2078]
[1735414574663,1.65387857,3402.8,3402.1,3.2078]
[1735414574868,3.2078,3402.7,3402.0,4.58828112]
[1735414575175,0.29447,3402.3,3402.1,0.29447]
[1735414575475,0.29447,3402.3,3402.0,4.58828112]
[1735414575476,0.29447,3402.1,3402.0,4.58828112]
[1735414575670,0.29447,3402.1,3402.0,0.29448]
[1735414575975,1.5934,3402.2,3401.7,3.2078]
[1735414576170,0.29449,3402.0,3401.9,0.29449]
[1735414577271,0.29448,3402.1,3402.0,0.29448]
[1735414577775,0.29448,3402.0,3401.9,0.29449]
[1735414578369,1.5934,3402.2,3401.7,3.2078]
[1735414578573,0.2945,3401.8,3401.7,3.2078]
[1735414579076,0.2945,3401.8,3401.7,3.50231]
[1735414579678,0.2945,3401.8,3401.7,3.2078]
[1735414579882,0.2945,3401.8,3401.7,3.50231]
[1735414580474,0.2945,3401.8,3401.7,0.29451]
[1735414583283,0.2945,3401.8,3401.3,3.2078]
[1735414583485,0.29451,3401.8,3401.6,0.29451]
[1735414583675,0.29451,3401.8,3401.7,0.29451]
[1735414584683,3.2078,3402.1,3401.3,3.2078]
[1735414584883,0.29452,3401.7,3401.5,0.29452]
[1735414585079,3.2078,3402.1,3401.3,3.2078]
[1735414585284,0.29454,3401.4,3401.3,3.2078]
[1735414586179,0.29454,3401.4,3401.3,3.50234]
[1735414586573,0.29454,3401.4,3401.3,3.2078]
[1735414586982,0.29454,3401.4,3401.3,3.50234]
[1735414587888,0.29454,3401.4,3401.3,3.2078]
[1735414589583,0.29454,3401.4,3401.1,0.29456]
[1735414589584,1.0398,3401.5,3401.1,0.29456]
[1735414589780,0.29455,3401.3,3401.1,0.29456]
[1735414589984,0.29455,3401.2,3401.1,0.29456]
[1735414592081,0.29456,3401.1,3401.0,3.50237]
[1735414592282,2.39026857,3401.2,3400.5,3.7232]
[1735414592484,0.73642,3401.1,3400.5,3.7232]
[1735414592687,0.29459,3400.8,3400.7,0.29459]
[1735414593186,0.5312,3401.1,3400.5,3.7232]
[1735414593486,0.29457,3401.0,3400.7,0.29459]
[1735414593688,0.5312,3401.1,3400.5,3.7232]
[1735414593888,0.2946,3400.7,3400.6,0.2946]
[1735414595789,0.2946,3400.6,3400.5,4.01781]
[1735414595985,0.2946,3400.7,3400.6,0.2946]
[1735414596486,0.2946,3400.6,3400.5,4.01781]
[1735414596886,1.94847857,3400.6,3400.5,3.2078]
[1735414599091,1.94847857,3400.6,3400.0,4.58828112]
[1735414599092,1.65387857,3400.6,3400.0,4.58828112]
[1735414599294,0.29464,3400.2,3400.1,0.29465]
[1735414599795,0.5474,3400.5,3399.8,5.13858112]
[1735414600098,0.29467,3399.9,3399.8,4.58828112]
[1735414601097,0.85267,3399.9,3399.8,4.88295112]
[1735414601590,0.85267,3399.9,3399.7,3.50248]
[1735414602496,0.558,3399.9,3399.7,3.2078]
[1735414602690,0.29467,3399.8,3399.7,3.2078]
[1735414605789,0.29467,3399.8,3399.1,0.5548]
[1735414605790,5.0,3399.8,3398.9,4.58828112]
[1735414606002,0.29474,3399.0,3398.9,4.58828112]
[1735414607208,0.29475,3398.9,3398.8,3.2078]
[1735414607406,1.94862857,3398.9,3398.8,3.2078]
[1735414609701,3.50251,3399.4,3399.2,0.29472]
[1735414609905,0.29471,3399.4,3399.2,0.29472]
[1735414610110,1.65387857,3399.5,3399.4,0.29471]
[1735414610309,3.2078,3399.8,3399.4,3.2078]
[1735414610513,3.2078,3399.8,3399.7,0.29468]
[1735414613808,0.29466,3400.1,3399.5,1.4235]
[1735414614114,0.29466,3400.1,3400.0,0.29466]
[1735414614410,0.29466,3400.1,3399.5,2.16024]
[1735414614614,0.29466,3400.1,3399.5,1.4235]
[1735414614615,0.29466,3400.0,3399.5,1.4235]
[1735414614815,0.29467,3399.9,3399.5,1.4235]
[1735414615109,0.29468,3399.8,3399.7,0.29468]
[1735414615319,0.29467,3399.9,3399.7,0.29468]
[1735414616510,0.29467,3399.9,3399.5,0.5571]
[1735414616812,0.29467,3399.9,3399.8,0.29467]
[1735414619509,0.29467,3399.9,3399.5,0.5571]
[1735414619708,0.29467,3399.9,3399.7,0.29468]
[1735414621217,0.29467,3399.8,3399.7,0.29468]
[1735414621413,1.65387857,3400.1,3399.8,0.29467]
[1735414621414,0.29466,3400.0,3399.8,0.29467]
[1735414621716,0.29467,3399.9,3399.8,0.29467]
[1735414624011,1.65387857,3400.1,3399.5,3.7649]
[1735414624212,1.6646,3400.3,3399.5,3.2078]
[1735414624213,0.29469,3399.6,3399.5,3.2078]
[1735414626014,0.29469,3399.6,3399.5,3.5025]
[1735414628413,0.29469,3399.6,3399.5,3.2078]
[1735414629314,0.29471,3399.4,3399.3,0.00218389]
[1735414629514,3.2078,3399.6,3398.9,3.2078]
[1735414629515,1.65387857,3399.5,3398.9,3.2078]
[1735414629716,1.94861857,3399.0,3398.9,3.2078]
[1735414631317,1.94861857,3399.0,3398.6,4.58828112]
[1735414631318,0.29477,3398.7,3398.6,4.58828112]
[1735414631522,1.94864857,3398.7,3398.6,4.58828112]
[1735414631823,0.2948,3398.3,3398.2,3.50261]
[1735414632219,0.2948,3398.3,3398.2,3.2078]
[1735414632720,0.29483,3398.0,3397.9,4.58828112]
[1735414632923,1.94870857,3398.0,3397.9,4.58828112]
[1735414633220,0.5622,3398.2,3397.7,7.79608112]
[1735414633420,2.74417857,3398.3,3397.9,0.5292]
[1735414633627,2.36832792,3398.3,3397.9,0.5292]
[1735414633821,0.29482,3398.2,3398.0,0.29483]
[1735414634323,0.5592,3398.3,3398.2,0.29481]
[1735414634523,0.5592,3398.3,3398.1,3.2078]
[1735414634524,0.5622,3398.4,3398.3,0.2948]
[1735414635821,0.857,3398.4,3398.3,0.2948]
[1735414636021,0.5622,3398.4,3398.3,0.2948]
[1735414637016,0.857,3398.4,3398.2,0.29481]
[1735414638121,0.857,3398.4,3397.9,0.5292]
[1735414638319,0.857,3398.4,3398.3,0.2948]
[1735414638523,0.857,3398.4,3398.1,3.2078]
[1735414638826,0.857,3398.4,3398.2,0.29481]
[1735414639820,0.857,3398.4,3398.1,3.2078]
[1735414639821,0.5622,3398.4,3398.1,3.2078]
[1735414640022,0.29481,3398.2,3398.1,3.2078]
[1735414640421,0.86611,3398.2,3398.1,3.2078]
[1735414642729,0.5713,3398.2,3398.1,3.50262]
[1735414642926,1.94868857,3398.3,3398.2,0.29481]
[1735414643619,0.5622,3398.4,3398.1,3.2078]
[1735414644027,0.29481,3398.3,3398.2,0.29481]
[1735414645525,0.29481,3398.2,3398.1,3.2078]
[1735414647720,1.65387857,3398.3,3398.2,0.29481]
[1735414650822,0.857,3398.4,3398.3,0.2948]
[1735414653024,0.29481,3398.3,3398.2,0.29481]
[1735414654029,0.857,3398.4,3398.3,0.2948]
[1735414654833,0.5622,3398.4,3398.3,0.2948]
[1735414656225,0.29481,3398.3,3398.2,0.29481]
[1735414656424,1.94868857,3398.3,3398.2,0.29481]
[1735414658131,1.94868857,3398.3,3398.2,3.50261]
[1735414658532,1.94868857,3398.3,3398.2,3.2078]
[1735414661131,1.94867857,3398.3,3398.2,3.2078]
[1735414661634,1.65387857,3398.3,3397.7,7.79608112]
[1735414661832,1.65387857,3398.0,3397.7,7.79608112]
[1735414662130,1.40815,3397.9,3397.8,0.29484]
[1735414663035,1.97495,3397.9,3397.8,0.29484]
[1735414665039,0.29485,3397.8,3397.7,0.29485]
[1735414670442,1.6801,3397.9,3397.3,5.14108112]
[1735414670636,0.29485,3397.8,3397.7,0.29485]
[1735414673942,1.6801,3397.9,3397.4,4.58828112]
[1735414674249,0.29485,3397.8,3397.7,0.29486]
[1735414674543,0.29486,3397.7,3397.6,0.29486]
[1735414675747,0.29486,3397.7,3397.6,4.88314112]
[1735414677336,1.6801,3397.9,3397.6,4.88314112]
[1735414677337,0.29485,3397.8,3397.7,0.29485]
[1735414677747,0.29486,3397.7,3397.6,4.88314112]
[1735414677948,0.29486,3397.7,3397.6,10.48059605]
[1735414679450,0.29486,3397.7,3397.6,4.88314112]
[1735414685453,1.6801,3397.9,3397.7,0.29485]
[1735414685454,0.29485,3397.8,3397.7,0.29485]
[1735414685747,0.29485,3397.8,3397.6,4.58828112]
[1735414685748,0.5668,3397.9,3397.8,0.29485]
[1735414685958,3.45209708,3398.2,3398.1,0.29482]
[1735414686154,3.45209708,3398.2,3398.1,3.50262]
[1735414686453,4.18130494,3398.2,3398.1,3.50262]
[1735414687554,0.72920786,3398.2,3398.1,15.9786776]
[1735414688456,0.5605,3398.5,3398.1,15.6838576]
[1735414688457,2.21924978,3398.5,3398.1,15.6838576]
[1735414688657,2.51403978,3398.5,3398.4,0.2948]
[1735414689557,2.51403978,3398.5,3398.2,0.5247]
[1735414689752,0.2948,3398.4,3398.3,0.2948]
[1735414690152,2.21924978,3398.5,3398.3,0.2948]
[1735414690351,2.21924978,3398.5,3398.1,15.6838576]
[1735414690656,0.29481,3398.3,3398.2,0.29481]
[1735414691447,0.29481,3398.3,3398.2,10.50147804]
[1735414691656,2.21924978,3398.5,3398.4,0.2948]
[1735414692753,2.51403978,3398.5,3398.4,0.2948]
[1735414693159,2.21924978,3398.5,3398.3,4.61385093]
[1735414693361,0.2948,3398.4,3398.3,4.90865093]
[1735414694456,0.2948,3398.4,3398.3,4.61385093]
[1735414694954,0.2948,3398.4,3398.3,4.90865093]
[1735414695660,0.2948,3398.3,3398.2,0.29481]
[1735414700167,0.29481,3398.2,3398.1,4.90867093]
[1735414700370,0.83291,3398.2,3398.1,4.61385093]
[1735414701664,0.83291,3398.2,3398.1,4.90867093]
[1735414706264,0.83291,3398.2,3398.1,4.61385093]
[1735414706562,2.49165978,3398.2,3398.1,4.61385093]
[1735414706765,2.49165978,3398.2,3398.1,4.90867093]
[1735414708367,2.49165978,3398.2,3398.1,4.61385093]
[1735414709071,2.19684978,3398.2,3398.0,4.90868093]
[1735414709272,0.82882,3398.1,3398.0,4.90868093]
[1735414709473,0.534,3398.1,3398.0,4.90868093]
[1735414709770,0.82882,3398.1,3398.0,4.90868093]
[1735414710367,1.55805691,3398.1,3398.0,4.90868093]
[1735414710562,1.26323691,3398.1,3398.0,4.90868093]
[1735414713474,1.26323691,3398.1,3398.0,10.51026976]
[1735414714474,0.72923691,3398.1,3398.0,10.51026976]
[1735414714671,0.72923691,3398.1,3398.0,11.02786976]
[1735414715071,0.72923691,3398.1,3398.0,6.41401883]
[1735414715379,1.40859,3398.5,3398.0,6.41401883]
[1735414715380,0.72923691,3398.3,3398.2,0.29481]
[1735414716880,3.45209708,3398.8,3398.2,17.48401051]
[1735414717072,3.45209708,3398.8,3398.7,0.29477]
[1735414717880,3.45209708,3398.8,3398.7,0.86227]
[1735414718378,3.45209708,3398.8,3398.7,1.59150691]
[1735414718581,0.72923691,3399.1,3398.7,29.59082065]
[1735414718778,0.72923691,3399.1,3399.0,3.50254]
[1735414719081,0.5572,3399.2,3399.1,0.29473]
[1735414720279,0.5572,3399.2,3399.1,5.89631883]
[1735414720781,0.85301,3399.4,3399.1,5.60158883]
[1735414721076,3.45209708,3400.0,3399.1,5.60158883]
[1735414721284,0.576,3399.9,3399.8,0.29467]
[1735414723276,0.29468,3399.8,3399.6,4.9022457]
[1735414723583,5.44145342,3399.9,3399.8,0.29467]
[1735414723882,2.23365342,3399.9,3399.8,0.29467]
[1735414725580,0.576,3399.9,3399.8,0.29467]
[1735414725781,0.5284,3400.0,3399.5,0.73674]
[1735414725979,0.5284,3400.0,3399.9,0.29467]
[1735414732387,0.82306,3400.0,3399.9,0.29467]
[1735414732593,0.29467,3399.9,3399.8,0.29467]
[1735414732992,0.29467,3399.9,3399.7,3.50248]
[1735414735594,0.29467,3399.9,3399.8,0.29467]
[1735414735985,0.29467,3399.8,3399.7,0.29468]
[1735414740294,1.02315058,3399.8,3399.7,0.29468]
[1735414740887,0.72848058,3399.8,3399.7,0.29468]
[1735414741089,1.02315058,3399.8,3399.7,0.29468]
[1735414741485,0.5284,3400.0,3399.7,0.29468]
[1735414741694,0.5655,3400.2,3399.9,0.72848058]
[1735414741889,0.29462,3400.5,3400.1,3.93628058]
[1735414742089,0.29462,3400.5,3400.4,0.29462]
[1735414742290,1.1157,3400.6,3400.5,0.29461]
[1735414742487,3.30780983,3401.3,3400.5,3.93628058]
[1735414742690,0.29457,3401.1,3400.9,0.29458]
[1735414743190,2.39978058,3401.2,3400.7,0.72848058]
[1735414743396,1.02305058,3401.0,3400.6,1.0821]
[1735414743599,0.72848058,3401.0,3400.8,0.29458]
[1735414743784,1.02306058,3401.0,3400.8,0.29458]
[1735414744389,0.29458,3401.0,3400.8,0.29458]
[1735414747595,0.29458,3401.0,3400.6,1.0821]
[1735414747997,1.6560714,3401.1,3400.5,3.2078]
[1735414748302,0.2946,3400.6,3400.5,3.2078]
[1735414748703,3.2078,3400.6,3399.9,4.59100968]
[1735414748893,3.3400714,3400.5,3400.0,0.29465]
[1735414749090,0.29464,3400.2,3400.0,0.29465]
[1735414749293,0.29465,3400.1,3400.0,0.29465]
[1735414749702,3.3400714,3400.5,3399.5,1.1431]
[1735414749895,2.3926914,3400.2,3399.4,3.2078]
[1735414750099,3.2078,3399.8,3399.2,0.29472]
[1735414750397,0.29472,3399.3,3399.2,0.29472]
[1735414751202,0.29471,3399.4,3399.2,0.29472]
[1735414752510,0.29471,3399.4,3399.3,0.29472]
[1735414752904,0.29471,3399.4,3399.2,0.29472]
[1735414753102,0.29473,3399.1,3399.0,3.2078]
[1735414753299,3.2078,3399.2,3398.5,0.5418]
[1735414753503,3.2078,3399.2,3398.7,3.2078]
[1735414753703,0.29472,3399.3,3399.1,0.29473]
[1735414754105,2.2077714,3399.6,3398.7,3.2078]
[1735414754405,0.29473,3399.2,3399.0,0.29474]
[1735414756303,0.2947,3399.5,3399.3,0.29472]
[1735414756504,0.5517,3399.6,3399.5,0.2947]
[1735414757509,0.84639,3399.6,3399.4,0.29471]
[1735414758703,0.5517,3399.6,3399.1,3.2078]
[1735414758914,0.29471,3399.4,3399.1,3.2078]
[1735414759103,0.29471,3399.4,3399.3,0.29472]
[1735414759708,0.29471,3399.5,3399.3,0.29472]
[1735414761306,0.29471,3399.5,3399.1,3.2078]
[1735414761603,0.29471,3399.5,3399.4,0.29471]
[1735414763010,0.5517,3399.6,3399.4,0.29471]
[1735414763212,0.2947,3399.5,3399.4,0.29471]
[1735414763607,0.2947,3399.5,3399.3,0.29471]
[1735414763914,0.29472,3399.3,3399.1,3.50253]
[1735414764212,0.5517,3399.6,3399.1,3.2078]
[1735414764408,0.29472,3399.3,3399.2,0.29472]
[1735414764718,0.5517,3399.6,3399.1,3.50253]
[1735414764921,0.29472,3399.3,3399.1,3.50253]
[1735414765214,0.29472,3399.3,3399.2,0.29472]
[1735414765914,0.29473,3399.2,3399.1,3.2078]
[1735414766113,0.29473,3399.2,3399.1,3.50253]
[1735414766310,0.29472,3399.3,3399.1,3.50253]
[1735414766914,0.5517,3399.6,3399.1,3.2078]
[1735414766915,0.29473,3399.2,3399.1,3.2078]
[1735414769215,0.29473,3399.2,3399.1,3.50253]
[1735414770412,1.28845,3399.6,3399.1,3.2078]
[1735414770714,0.29471,3399.4,3399.3,0.29472]
[1735414771509,0.29471,3399.4,3399.2,0.29472]
[1735414772313,0.5517,3399.6,3399.1,3.2078]
[1735414772514,0.5517,3399.6,3399.5,0.2947]
[1735414772709,0.5265,3399.7,3399.6,0.29469]
[1735414773107,3.75249224,3400.0,3399.9,0.29467]
[1735414774016,0.29466,3400.0,3399.9,0.29467]
[1735414774607,0.29466,3400.0,3399.5,3.94456]
[1735414774813,0.29466,3400.0,3399.8,0.29467]
[1735414775321,1.1328,3400.1,3399.7,0.29467]
[1735414775820,0.29467,3399.8,3399.7,0.29467]
[1735414777021,0.29467,3399.9,3399.7,0.29467]
[1735414777320,0.29467,3399.9,3399.8,0.29467]
[1735414777917,0.29468,3399.8,3399.7,0.29468]
[1735414778122,0.29467,3399.9,3399.7,0.29468]
[1735414778623,0.29467,3399.9,3399.8,0.29467]
[1735414778821,1.1328,3400.1,3399.2,5.66480968]
[1735414779020,0.29467,3400.0,3399.5,3.2078]
[1735414779216,0.29467,3399.9,3399.8,0.29467]
[1735414779618,0.29467,3399.9,3399.5,3.2078]
[1735414779619,0.29466,3400.0,3399.9,0.29466]
[1735414783822,0.29466,3400.0,3399.6,0.73674]
[1735414783823,1.1328,3400.1,3400.0,0.29466]
[1735414788333,0.5696,3400.1,3400.0,0.29466]
[1735414788937,0.86425,3400.1,3400.0,0.29466]
[1735414789638,0.5696,3400.1,3400.0,0.29466]
[1735414789841,0.86425,3400.1,3400.0,0.29466]
[1735414793349,0.5696,3400.1,3399.7,4.59100968]
[1735414793641,0.29467,3399.8,3399.7,4.59100968]
[1735414795039,0.73665,3400.0,3399.5,3.50249]
[1735414795343,0.82039,3399.7,3399.5,3.2078]
[1735414795544,0.82039,3399.7,3399.6,0.29469]
[1735414796544,0.82039,3399.7,3399.5,3.2078]
[1735414796545,0.29469,3399.6,3399.5,3.2078]
[1735414796737,0.83319,3399.6,3399.5,3.2078]
[1735414797440,0.83319,3399.6,3399.5,0.2947]
[1735414798946,0.5257,3399.7,3399.6,0.29469]
[1735414799152,3.45783224,3400.0,3399.9,0.29467]
[1735414800247,3.50242,3400.4,3400.0,0.29466]
[1735414800549,3.50242,3400.4,3400.3,0.29463]
[1735414800744,3.2078,3400.4,3400.3,0.29463]
[1735414801550,3.50242,3400.4,3400.3,0.29463]
[1735414801953,3.2078,3400.4,3400.3,0.29463]
[1735414802154,0.577,3400.5,3400.4,0.29462]
[1735414803753,0.29462,3400.4,3400.3,0.29463]
[1735414803954,0.87162,3400.5,3400.4,0.29462]
[1735414804662,1.0919,3400.7,3400.2,0.5441]
[1735414804951,1.0919,3400.7,3400.6,0.2946]
[1735414805155,1.3865,3400.7,3400.6,0.2946]
[1735414805556,1.3865,3400.7,3400.5,0.29461]
[1735414806147,1.3865,3400.7,3400.4,0.5504]
[1735414806359,1.3865,3400.7,3400.5,0.29461]
[1735414806753,1.3865,3400.7,3400.6,0.2946]
[1735414807850,1.3865,3400.7,3400.4,0.5504]
[1735414807851,1.3865,3400.7,3400.5,0.29461]
[1735414808955,0.2946,3400.6,3400.5,0.29461]
[1735414809360,0.29461,3400.5,3400.4,0.84502]
[1735414809554,0.29461,3400.5,3400.4,0.29462]
[1735414810254,1.0919,3400.7,3400.2,7.79880968]
[1735414810456,0.83052,3400.4,3400.3,0.29462]
[1735414813459,0.29461,3400.6,3400.5,0.29461]
[1735414813757,0.5666,3400.6,3400.5,0.29461]
[1735414814555,0.8612,3400.6,3400.5,0.29461]
[1735414814763,0.5666,3400.6,3400.5,0.29461]
[1735414815159,0.8612,3400.6,3400.5,0.29461]
[1735414815761,1.0919,3400.7,3400.6,0.2946]
[1735414816058,0.5418,3400.7,3400.6,0.2946]
[1735414816460,1.40268,3400.9,3400.8,0.29459]
[1735414816963,4.86051224,3400.9,3400.8,0.29459]
[1735414818464,1.40268,3400.9,3400.8,0.29459]
[1735414819066,1.40268,3400.9,3400.4,1.1131]
[1735414819267,0.29459,3400.8,3400.7,0.29459]
[1735414819662,1.1081,3400.9,3400.3,4.59100968]
[1735414819867,0.29461,3400.5,3400.4,0.29462]
[1735414824864,0.29461,3400.6,3400.5,0.2946]
[1735414825172,4.3159,3400.9,3400.3,4.59100968]
[1735414825370,4.3159,3400.9,3400.8,0.29459]
[1735414826266,3.7624,3400.9,3400.8,0.29459]
[1735414827065,0.5546,3400.9,3400.8,3.50239]
[1735414829472,0.5546,3400.9,3400.8,0.29459]
[1735414834275,0.29457,3401.1,3401.0,0.29457]
[1735414834574,4.04555,3401.3,3401.2,0.29455]
[1735414834775,0.29456,3401.2,3401.1,0.29456]
[1735414834977,3.751,3401.3,3400.8,4.59100968]
[1735414835176,4.04555,3401.3,3401.2,0.29455]
[1735414835877,0.29455,3401.2,3401.1,0.29456]
[1735414836778,0.29455,3401.2,3401.0,0.29456]
[1735414837179,0.29455,3401.2,3401.1,0.29456]
[1735414837777,3.751,3401.3,3401.0,0.29457]
[1735414838283,0.29456,3401.2,3401.1,0.29456]
[1735414839480,0.2946,3400.7,3400.6,4.59100968]
[1735414840078,0.29462,3400.5,3400.4,0.29462]
[1735414841272,1.38481,3400.6,3400.4,0.29462]
[1735414841873,1.38481,3400.6,3400.2,3.2078]
[1735414842078,1.38481,3400.6,3400.5,0.29461]
[1735414842277,0.29462,3400.5,3400.3,0.29462]
[1735414842577,0.29462,3400.4,3400.3,0.29462]
[1735414843082,1.0902,3400.6,3400.2,3.2078]
[1735414843083,0.29462,3400.5,3400.4,0.29462]
[1735414845686,0.29462,3400.5,3400.3,0.29463]
[1735414845687,0.29461,3400.5,3400.3,0.29463]
[1735414845888,0.86243,3400.4,3400.3,0.29463]
[1735414846994,0.5678,3400.4,3400.3,0.29463]
[1735414847892,0.5678,3400.4,3400.2,4.59100968]